bitfinex/quotes_ETHUSD_20241217
["timestamp","ask_amount","ask_price","bid_price","bid_amount"]
[1734441606776,0.02787131,4000.1,3999.8,1.07849857]
[1734441607135,0.7933,4000.3,3999.8,1.07849857]
[1734441607335,0.02788852,4000.2,3999.8,1.07849857]
[1734441607646,0.7933,4000.3,3999.8,1.07849857]
[1734441607846,0.02787131,4000.1,3999.8,1.07849857]
[1734441608043,0.02788852,4000.2,3999.8,1.07849857]
[1734441608275,0.0278541,4000.0,3999.8,1.07849857]
[1734441608573,0.7933,4000.3,3999.9,1.42080337]
[1734441608770,0.7933,4000.3,4000.2,1.07849857]
[1734441613109,1.65554512,4000.3,4000.2,1.07849857]
[1734441614519,2.94921564,4000.3,4000.2,1.07849857]
[1734441615318,3.99057877,4000.3,4000.2,1.07849857]
[1734441617430,3.19727877,4000.3,4000.2,1.07849857]
[1734441617633,3.19941746,4000.3,4000.2,1.07849857]
[1734441618135,4.02921746,4000.3,3999.9,1.07849857]
[1734441618353,2.15805433,4000.2,3999.8,0.30784854]
[1734441618537,1.04136313,4000.5,4000.1,0.7788]
[1734441618771,1.5620447,4000.7,4000.2,1.18347896]
[1734441618772,1.04136313,4000.7,4000.2,1.18347896]
[1734441618968,1.04136313,4001.0,4000.6,1.07849857]
[1734441619264,0.86350129,4000.9,4000.6,0.55]
[1734441619420,2.3918447,4001.3,4000.9,0.55]
[1734441619421,1.04136313,4001.2,4000.9,0.55]
[1734441619626,2.15803696,4001.1,4000.9,0.55]
[1734441619827,1.04136313,4001.2,4001.0,1.07849857]
[1734441620042,2.1581356,4001.1,4001.0,1.07849857]
[1734441620372,0.86325424,4001.1,4001.0,1.07849857]
[1734441621676,0.86325424,4001.2,4001.0,1.07849857]
[1734441621857,1.87116313,4001.3,4001.0,1.07849857]
[1734441622065,2.15644631,4001.2,4001.0,1.07849857]
[1734441622225,0.86249386,4001.1,4001.0,1.07849857]
[1734441622428,0.0272071,4001.2,4001.0,1.07849857]
[1734441622675,0.0271899,4001.1,4000.1,1.10443042]
[1734441622875,1.69209001,4001.0,4000.4,1.07849857]
[1734441623083,0.8298,4001.0,4000.4,1.07849857]
[1734441623242,0.02789264,4000.9,4000.4,1.07849857]
[1734441623445,0.02789264,4000.9,3999.9,1.04587018]
[1734441623654,0.8298,4000.7,3999.7,1.38634711]
[1734441623875,0.86216022,4000.6,3999.7,1.38634711]
[1734441624056,0.88990166,4000.6,3999.7,1.38634711]
[1734441624257,0.02774144,4000.6,3999.7,1.38634711]
[1734441624459,0.86209179,4000.5,3999.7,1.38634711]
[1734441625011,0.02770703,4000.4,4000.0,1.07849857]
[1734441625348,1.87259388,4000.7,4000.0,1.07849857]
[1734441625593,0.02751234,4000.6,4000.0,1.71197753]
[1734441626696,0.02751234,4000.6,4000.0,1.07849857]
[1734441627196,0.8298,4000.4,3999.3,1.04587018]
[1734441627522,0.8298,4000.1,3999.3,1.07849857]
[1734441627799,0.88930712,4000.0,3999.3,1.07849857]
[1734441627952,0.02729455,4000.0,3999.3,1.07849857]
[1734441629381,0.8298,3999.9,3999.3,1.07849857]
[1734441629588,0.8298,3999.9,3998.9,0.7788]
[1734441629898,0.02726013,3999.8,3999.2,1.07849857]
[1734441630122,0.02726013,3999.8,3998.9,0.7788]
[1734441630403,0.02726013,3999.8,3998.9,3.7788]
[1734441631281,0.02726013,3999.8,3998.9,4.08664854]
[1734441631800,0.7605,3999.7,3998.9,3.30784854]
[1734441632453,0.7605,3999.7,3998.9,0.30784854]
[1734441632654,0.7605,3999.7,3998.8,2.33751923]
[1734441632655,0.86175623,3999.6,3998.8,2.33751923]
[1734441632880,0.7605,3999.5,3998.6,0.32563042]
[1734441633206,0.0576316,3999.4,3998.6,0.32563042]
[1734441635512,0.7605,3999.3,3998.4,5.33751923]
[1734441635855,0.05731466,3999.2,3998.4,5.33751923]
[1734441636286,0.7605,3999.3,3998.4,5.33751923]
[1734441636674,0.05731466,3999.2,3998.4,5.33751923]
[1734441637202,0.7605,3999.3,3998.4,5.33751923]
[1734441637713,0.05731466,3999.2,3998.4,5.33751923]
[1734441639502,0.7544,3999.1,3998.4,5.33751923]
[1734441639702,0.7544,3999.1,3998.2,0.32563042]
[1734441639905,0.05728179,3999.0,3998.2,0.32563042]
[1734441640107,0.7544,3999.1,3998.2,0.32563042]
[1734441640409,0.7544,3998.8,3998.0,5.33751923]
[1734441641124,0.05687365,3998.7,3998.0,5.33751923]
[1734441642081,0.7544,3998.8,3998.0,5.33751923]
[1734441642482,0.05687365,3998.7,3998.0,5.33751923]
[1734441643005,0.7544,3998.8,3998.0,5.33751923]
[1734441643489,1.5620447,3999.6,3998.4,2.33751923]
[1734441643490,0.05687365,3998.7,3998.4,2.33751923]
[1734441643677,0.05687365,3998.7,3998.4,2.66314965]
[1734441643878,0.7544,3999.2,3998.4,2.66314965]
[1734441644272,0.05664529,3999.1,3998.4,2.66314965]
[1734441644980,0.05664529,3999.1,3998.8,2.33751923]
[1734441645709,0.7544,3999.2,3998.8,2.33751923]
[1734441646507,1.04279388,4000.2,3998.9,3.89680704]
[1734441646508,0.7718,3999.5,3998.9,3.89680704]
[1734441646708,0.7718,3999.5,3999.2,2.33751923]
[1734441647832,0.7718,3999.5,3998.9,4.18347896]
[1734441648921,0.7718,3999.5,3998.8,2.33751923]
[1734441649104,0.7718,3999.5,3998.8,5.97099819]
[1734441649307,0.7718,3999.5,3998.9,3.0]
[1734441649917,0.7718,3999.5,3999.0,0.32563042]
[1734441650231,0.7718,3999.5,3999.1,0.02499629]
[1734441650398,0.7718,3999.5,3999.0,0.350632]
[1734441650809,0.7718,3999.5,3999.0,0.32563042]
[1734441651013,0.7718,3999.5,3998.9,3.30784854]
[1734441652217,0.7718,3999.5,3999.0,0.55]
[1734441653223,0.7718,3999.5,3998.9,3.55]
[1734441653406,0.7718,3999.5,3998.9,3.0]
[1734441653701,0.7718,3999.5,3998.8,2.33751923]
[1734441654425,0.7718,3999.5,3997.8,1.04587018]
[1734441654426,0.7718,3999.5,3998.1,3.15901923]
[1734441654640,0.7718,3999.5,3998.1,3.79249819]
[1734441654924,0.7718,3999.3,3998.1,3.79249819]
[1734441655126,0.7718,3999.3,3998.5,2.33751923]
[1734441655301,0.05732961,3999.2,3998.5,2.33751923]
[1734441655504,0.7718,3999.3,3998.5,2.97099819]
[1734441655917,0.05732961,3999.2,3998.5,2.97099819]
[1734441656095,0.7718,3999.3,3998.5,2.97099819]
[1734441656608,0.7718,3999.3,3998.9,2.33751923]
[1734441658417,0.7718,4000.1,3998.9,2.33751923]
[1734441658793,0.7718,3999.9,3998.9,2.33751923]
[1734441659295,0.7718,3999.7,3998.9,2.33751923]
[1734441659828,0.05704149,3999.6,3998.9,2.33751923]
[1734441660727,0.7718,3999.5,3998.9,2.33751923]
[1734441661231,0.05700862,3999.4,3998.9,2.33751923]
[1734441661635,0.7718,3999.5,3998.9,2.33751923]
[1734441661836,0.7718,3999.5,3998.7,0.55]
[1734441662132,0.05700862,3999.4,3998.6,3.55]
[1734441662295,0.05700862,3999.4,3999.0,3.55]
[1734441662495,1.71998168,4000.8,3999.3,2.33751923]
[1734441662496,0.7539,3999.8,3999.3,2.33751923]
[1734441662729,0.7539,3999.8,3999.3,2.36251864]
[1734441662932,0.05714265,3999.7,3999.3,2.9959976]
[1734441663106,0.7539,4000.1,3999.7,0.55]
[1734441668033,0.7539,4000.6,3999.7,0.55]
[1734441668536,0.05730898,4000.5,3999.7,0.55]
[1734441670253,0.05730898,4000.5,4000.0,5.0]
[1734441679766,0.7539,4000.6,4000.0,5.0]
[1734441681642,0.05581246,4000.5,4000.0,5.0]
[1734441681963,0.24106309,4000.5,4000.0,5.0]
[1734441682284,0.05581246,4000.5,4000.0,5.0]
[1734441687382,0.05581246,4000.5,4000.1,0.30784854]
[1734441687702,0.05581246,4000.5,4000.1,0.63347896]
[1734441688620,0.7539,4000.6,4000.1,0.63347896]
[1734441689111,0.05618124,4000.5,4000.1,0.63347896]
[1734441691965,0.05618124,4000.5,4000.1,1.0785142]
[1734441693408,0.05618124,4000.5,4000.4,1.0785142]
[1734441693713,0.8269,4000.9,4000.4,1.40414462]
[1734441694214,0.05474081,4000.8,4000.4,1.40414462]
[1734441694573,0.05474081,4000.8,4000.4,0.32563042]
[1734441695511,0.05474081,4000.8,4000.3,1.0785142]
[1734441695814,0.05474081,4000.8,4000.0,6.6299]
[1734441695815,0.05474081,4000.8,4000.0,7.7084142]
[1734441699552,0.05474081,4000.8,4000.0,8.01626274]
[1734441705501,0.05474081,4000.8,4000.3,1.0785142]
[1734441708420,0.05474081,4000.8,4000.6,1.0785142]
[1734441708821,1.04279388,4001.1,4000.6,1.0785142]
[1734441709023,0.05445255,4000.7,4000.6,1.0785142]
[1734441709548,1.83579388,4001.2,4000.6,1.0785142]
[1734441709720,1.83579388,4001.2,4000.6,1.8843142]
[1734441709721,0.05445255,4000.7,4000.6,1.8843142]
[1734441709925,1.83579388,4001.2,4000.6,4.8843142]
[1734441710153,0.05445255,4000.7,4000.6,4.8843142]
[1734441710465,0.793,4001.2,4000.6,4.8843142]
[1734441710612,0.86480342,4001.1,4000.6,4.8843142]
[1734441710808,0.793,4001.2,4000.6,4.8843142]
[1734441710809,0.05452229,4000.7,4000.6,4.8843142]
[1734441711047,1.04279388,4001.1,4000.6,4.8843142]
[1734441711254,0.86481066,4001.0,4000.6,4.8843142]
[1734441711438,0.05457155,4001.0,4000.6,4.8843142]
[1734441711650,0.86460092,4000.9,4000.6,0.8058]
[1734441711970,0.05455364,4000.8,4000.6,3.8058]
[1734441712330,1.83579388,4001.2,4000.6,3.8058]
[1734441712652,2.16109033,4001.1,4000.6,3.8058]
[1734441712831,0.86443613,4001.0,4000.6,3.8058]
[1734441713171,0.05457006,4000.9,4000.6,3.8058]
[1734441713649,0.05455364,4000.8,4000.6,3.8058]
[1734441713867,1.83579388,4001.2,4000.6,3.8058]
[1734441714017,0.05453722,4000.7,4000.6,3.8058]
[1734441714241,1.83579388,4001.2,4000.6,3.8058]
[1734441714444,0.91889154,4001.1,4000.6,3.8058]
[1734441714655,0.05460291,4001.1,4000.6,3.8058]
[1734441721706,0.05460291,4001.1,4000.6,4.8843142]
[1734441723556,0.05460291,4001.1,4000.5,0.8654]
[1734441725455,0.05460291,4001.1,4001.0,5.0]
[1734441725872,0.24364259,4001.1,4001.0,5.0]
[1734441726066,1.10779378,4001.1,4001.0,5.0]
[1734441726297,3.19665863,4001.1,4001.0,5.0]
[1734441726467,3.19664255,4001.1,4001.0,5.0]
[1734441726671,1.90039378,4001.1,4001.0,5.0]
[1734441726853,1.9003649,4001.1,4001.0,5.0]
[1734441728097,3.19648775,4001.1,4001.0,5.0]
[1734441728462,1.9003649,4001.1,4001.0,5.0]
[1734441729301,1.71132522,4001.1,4001.0,5.0]
[1734441730807,3.00740339,4001.1,4001.0,5.0]
[1734441731015,1.71132522,4001.1,4001.0,5.0]
[1734441731505,3.00754117,4001.1,4001.0,5.0]
[1734441734306,8.42741257,4001.1,4001.0,5.0]
[1734441734606,6.65753911,4001.1,4001.0,3.15008888]
[1734441735021,4.92879663,4001.1,4001.0,3.15008888]
[1734441735181,6.65753911,4001.1,4001.0,3.15008888]
[1734441735366,4.92879663,4001.1,4001.0,3.15008888]
[1734441735573,7.54109079,4001.1,4001.0,3.15008888]
[1734441735869,6.65753911,4001.1,4001.0,3.15008888]
[1734441736186,5.57902491,4001.1,4001.0,3.15008888]
[1734441736387,3.85028243,4001.1,4001.0,3.15008888]
[1734441736722,5.57902491,4001.1,4001.0,3.15008888]
[1734441736871,3.85028243,4001.1,4001.0,3.15008888]
[1734441737071,5.57902491,4001.1,4001.0,3.15008888]
[1734441737315,6.46193135,4001.1,4001.0,3.15008888]
[1734441738181,6.8256672,4001.1,4001.0,3.15008888]
[1734441738389,3.00754117,4001.1,4001.0,3.15008888]
[1734441738581,4.57464711,4001.1,4001.0,3.15008888]
[1734441738786,3.00754117,4001.1,4001.0,3.15008888]
[1734441739015,4.73523658,4001.1,4001.0,3.15008888]
[1734441739213,3.00754117,4001.1,4001.0,3.15008888]
[1734441740108,5.50609598,4001.1,4001.0,3.15008888]
[1734441740308,3.77840057,4001.1,4001.0,3.15008888]
[1734441740630,5.50417602,4001.1,4001.0,3.15008888]
[1734441741916,3.77648061,4001.1,4001.0,3.15008888]
[1734441742282,4.85499481,4001.1,4001.0,3.15008888]
[1734441742469,6.58269022,4001.1,4001.0,3.15008888]
[1734441742807,0.8012,4001.0,4000.5,0.8654]
[1734441742978,0.8012,4000.6,4000.5,0.8654]
[1734441743182,2.9596183,4000.6,4000.5,0.8654]
[1734441743380,3.01366087,4000.6,4000.5,0.8654]
[1734441743793,3.71333715,4000.6,3999.8,0.55]
[1734441743994,1.04337696,4000.4,3999.8,0.55]
[1734441744200,2.33842794,4000.3,3999.8,0.55]
[1734441744412,0.05399329,4000.3,3999.8,0.55]
[1734441745018,2.39094656,4000.3,3999.8,0.55]
[1734441745311,1.29357631,4000.2,3999.8,0.55]
[1734441745523,1.09737025,4000.3,3999.8,0.55]
[1734441745682,0.05396044,4000.1,3999.8,0.55]
[1734441745882,1.04337696,4000.3,3999.8,0.55]
[1734441746098,0.05397687,4000.2,3999.8,0.55]
[1734441746298,1.04337696,4000.4,3999.8,0.55]
[1734441746512,0.05396044,4000.1,3999.8,0.55]
[1734441746809,1.04337696,4000.4,3999.8,0.55]
[1734441747021,0.05394401,4000.0,3999.8,0.55]
[1734441747317,1.04337696,4000.4,3999.8,0.55]
[1734441747473,0.05392758,3999.9,3999.8,0.55]
[1734441747679,1.04337696,4000.4,3999.8,0.55]
[1734441747875,1.34674192,4000.3,3999.8,0.55]
[1734441748097,0.05399329,4000.3,3999.8,0.55]
[1734441748901,0.05399329,4000.3,3999.9,1.0785142]
[1734441749407,0.05399329,4000.3,4000.2,0.8095]
[1734441749791,1.04337696,4000.7,4000.2,0.8095]
[1734441749987,0.05396839,4000.3,4000.2,0.8095]
[1734441750301,0.05329633,4000.3,4000.2,0.8095]
[1734441750514,1.04337696,4000.8,4000.2,0.8095]
[1734441750720,0.05329633,4000.3,4000.2,0.8095]
[1734441750920,1.04337696,4000.8,4000.2,0.8095]
[1734441751121,0.05329633,4000.3,4000.2,0.8095]
[1734441751325,1.04337696,4000.8,4000.2,0.8095]
[1734441751520,0.05329633,4000.3,4000.2,0.8095]
[1734441751707,1.04337696,4000.8,4000.2,0.8095]
[1734441751911,0.05329633,4000.3,4000.2,0.8095]
[1734441752100,1.04337696,4000.8,4000.2,0.8095]
[1734441752305,0.05329633,4000.3,4000.2,0.8095]
[1734441752499,1.04337696,4000.8,4000.2,0.8095]
[1734441752735,0.05329633,4000.3,4000.2,0.8095]
[1734441753007,1.04337696,4000.9,4000.3,0.55]
[1734441753228,1.04337696,4001.0,4000.3,0.55]
[1734441753550,1.34621707,4000.9,4000.3,0.55]
[1734441753751,1.09705581,4000.9,4000.3,0.55]
[1734441754039,0.05367885,4000.9,4000.3,0.55]
[1734441754225,1.09705581,4000.9,4000.3,0.55]
[1734441754544,0.05367885,4000.9,4000.3,0.55]
[1734441754998,1.09705581,4000.9,4000.3,0.55]
[1734441755199,0.05367885,4000.9,4000.3,0.55]
[1734441756325,1.09705581,4000.9,4000.3,0.55]
[1734441756697,0.05367885,4000.9,4000.3,0.55]
[1734441757540,1.09705581,4000.9,4000.3,0.55]
[1734441758041,0.05367885,4000.9,4000.3,0.55]
[1734441759549,2.38971156,4000.9,4000.3,0.55]
[1734441759748,1.09705581,4000.9,4000.3,0.55]
[1734441760112,1.29260491,4000.8,4000.3,0.55]
[1734441760344,1.09705581,4000.9,4000.3,0.55]
[1734441760539,0.05369582,4000.7,4000.3,0.55]
[1734441760753,0.05371224,4000.8,4000.3,0.55]
[1734441761048,0.0536794,4000.6,4000.3,0.55]
[1734441761377,1.04337696,4000.9,4000.3,0.55]
[1734441761378,0.05366297,4000.5,4000.3,0.55]
[1734441761715,1.04337696,4000.8,4000.3,0.55]
[1734441761942,0.05364655,4000.4,4000.3,0.55]
[1734441762252,1.04337696,4000.9,4000.3,0.55]
[1734441762459,0.05364655,4000.4,4000.3,0.55]
[1734441762754,1.04337696,4000.9,4000.3,0.55]
[1734441763174,0.05371224,4000.8,4000.3,0.55]
[1734441763728,1.04337696,4000.9,4000.2,0.8095]
[1734441763976,0.8012,4001.2,4000.2,0.8095]
[1734441763977,0.05369582,4000.7,4000.2,0.8095]
[1734441764176,3.19906393,4000.7,4000.2,0.8095]
[1734441764390,0.91596649,4000.6,4000.2,0.8095]
[1734441764677,0.0536794,4000.6,4000.2,0.8095]
[1734441765039,1.04337696,4000.7,4000.2,0.8095]
[1734441765394,3.25282283,4000.6,4000.2,0.55]
[1734441765702,3.19914343,4000.5,3999.9,0.55]
[1734441765835,0.86230465,4000.4,3999.9,0.55]
[1734441766035,0.05364655,4000.4,3999.9,0.55]
[1734441766568,0.86224034,4000.3,3999.9,0.55]
[1734441767176,0.05361369,4000.2,3999.9,0.55]
[1734441767542,1.04337696,4000.5,3999.9,0.55]
[1734441767871,0.05359727,4000.1,4000.0,0.70008888]
[1734441768033,1.04337696,4000.5,4000.0,0.15008888]
[1734441768231,0.05359727,4000.1,4000.0,0.70008888]
[1734441768436,1.04337696,4000.5,4000.0,0.15008888]
[1734441768937,0.05364655,4000.4,4000.0,0.15008888]
[1734441769166,0.05364655,4000.4,4000.1,0.55]
[1734441769946,0.86226404,4000.3,4000.0,0.15008888]
[1734441770341,0.05361369,4000.2,4000.0,0.15008888]
[1734441770539,0.05361369,4000.2,4000.1,1.9029142]
[1734441770857,1.04337696,4000.7,4000.1,1.9029142]
[1734441771172,3.25265797,4000.6,4000.1,1.9029142]
[1734441771475,2.15570625,4000.5,4000.1,1.9029142]
[1734441771636,0.05357476,4000.6,4000.1,1.9029142]
[1734441771836,0.05355688,4000.4,4000.1,1.9029142]
[1734441772063,0.0535733,4000.5,4000.1,1.9029142]
[1734441772277,0.05354045,4000.3,4000.1,1.9029142]
[1734441772561,0.05352403,4000.2,4000.1,1.9029142]
[1734441772769,1.04337696,4000.6,4000.1,1.9029142]
[1734441772975,0.05352403,4000.2,4000.1,1.9029142]
[1734441773133,1.04337696,4000.6,4000.1,1.9029142]
[1734441773480,0.05352403,4000.2,4000.1,1.9029142]
[1734441773660,1.04337696,4000.7,4000.1,1.9029142]
[1734441773973,0.91624877,4000.6,4000.1,1.9029142]
[1734441774175,0.0536495,4000.6,4000.1,1.9029142]
[1734441774551,0.0536495,4000.6,4000.2,0.55]
[1734441774740,0.0536495,4000.6,4000.3,0.8244]
[1734441775081,1.04337696,4000.8,4000.3,0.8244]
[1734441775282,0.0536779,4000.5,4000.3,0.8244]
[1734441775465,1.04337696,4000.8,4000.3,0.8244]
[1734441775636,0.05366148,4000.4,4000.3,0.8244]
[1734441775841,1.04337696,4000.8,4000.3,0.8244]
[1734441776187,0.86277849,4000.7,4000.3,0.8244]
[1734441776479,0.91648924,4000.7,4000.3,0.8244]
[1734441776777,0.05371075,4000.7,4000.3,0.8244]
[1734441777352,0.86336666,4000.6,4000.3,0.8244]
[1734441777874,0.0536779,4000.5,4000.3,0.8244]
[1734441778600,1.04337696,4000.8,4000.4,1.0785142]
[1734441778795,2.15872682,4000.7,4000.4,1.0785142]
[1734441778997,0.86349073,4000.6,4000.4,1.0785142]
[1734441779198,1.04337696,4000.8,4000.4,1.0785142]
[1734441779362,3.20239376,4000.7,4000.4,1.0785142]
[1734441779680,0.86360672,4000.6,4000.4,1.0785142]
[1734441779880,1.04337696,4000.7,4000.4,1.0785142]
[1734441780096,0.86360519,4000.6,4000.4,1.0785142]
[1734441780307,2.08717972,4001.1,4000.5,0.8244]
[1734441780308,1.04337696,4000.8,4000.5,0.8244]
[1734441780503,1.04337696,4001.0,4000.7,1.0785142]
[1734441780712,1.04337696,4001.1,4000.7,1.0785142]
[1734441780908,0.86360627,4001.0,4000.7,1.0785142]
[1734441781116,1.04337696,4001.2,4000.7,1.0785142]
[1734441781423,0.8637077,4001.1,4001.0,1.8772142]
[1734441781636,1.04337696,4001.5,4001.1,0.55]
[1734441781911,2.15907077,4001.4,4001.1,0.55]
[1734441782206,1.04337696,4001.6,4001.1,0.55]
[1734441782423,0.86326844,4001.5,4001.1,0.55]
[1734441782628,0.86326844,4001.5,4001.3,1.0785142]
[1734441783274,1.04337696,4001.7,4001.3,1.0785142]
[1734441783509,0.86303502,4001.6,4001.3,1.0785142]
[1734441784194,1.04337696,4001.9,4001.3,1.0785142]
[1734441784401,1.04337696,4002.0,4001.3,1.0785142]
[1734441784597,0.86298616,4001.9,4001.3,1.0785142]
[1734441784786,1.04337696,4002.1,4001.3,1.0785142]
[1734441784982,0.86299083,4002.0,4001.3,1.0785142]
[1734441785176,1.04337696,4002.1,4001.3,1.0785142]
[1734441785378,1.38021228,4002.1,4001.3,1.0785142]
[1734441785569,0.86279974,4002.0,4001.3,1.0785142]
[1734441786306,0.33683532,4002.1,4001.3,1.0785142]
[1734441786608,0.33683532,4002.1,4001.6,1.0785142]
[1734441786810,1.56507628,4002.4,4001.7,0.7987]
[1734441786811,1.04337696,4002.3,4001.7,0.7987]
[1734441786975,1.29412108,4002.2,4001.7,0.7987]
[1734441787172,0.05465923,4002.2,4001.9,1.0785142]
[1734441787372,1.04337696,4002.6,4001.9,1.0785142]
[1734441787739,1.90603147,4002.7,4001.9,1.0785142]
[1734441787894,0.7599,4002.8,4001.9,4.0785142]
[1734441787895,1.2857913,4002.6,4001.9,4.0785142]
[1734441788223,1.80327696,4002.8,4001.9,4.0785142]
[1734441788224,0.05484786,4002.5,4002.0,0.7987]
[1734441788456,0.05484786,4002.5,4002.3,0.7987]
[1734441788742,1.20872496,4003.4,4002.4,0.57498323]
[1734441788922,1.20872496,4003.4,4003.1,0.7987]
[1734441788923,0.165348,4003.4,4003.1,0.7987]
[1734441791235,0.165348,4003.4,4002.8,1.3487]
[1734441791990,0.165348,4003.4,4002.8,0.7987]
[1734441794149,1.04337696,4004.2,4002.8,0.7987]
[1734441794150,1.0785142,4004.0,4002.8,0.7987]
[1734441794350,0.44729445,4003.9,4002.8,0.7987]
[1734441794628,1.0785142,4003.7,4002.5,0.7987]
[1734441794830,1.0785142,4003.4,4002.5,0.7987]
[1734441795415,1.0785142,4003.7,4002.5,0.7987]
[1734441797114,0.7916,4003.6,4002.5,0.7987]
[1734441800050,0.7916,4003.6,4002.5,1.8772142]
[1734441800846,0.7916,4003.6,4002.5,0.7987]
[1734441801791,0.7916,4003.2,4001.9,0.7908]
[1734441801964,0.7916,4003.2,4001.9,1.8693142]
[1734441802168,0.05605138,4003.1,4002.3,0.7908]
[1734441802680,0.7916,4003.5,4002.3,0.7908]
[1734441802857,4.56507628,4004.1,4001.8,3.0]
[1734441802858,0.05603498,4003.0,4002.6,0.7908]
[1734441803054,0.7916,4004.0,4002.6,0.7908]
[1734441803253,0.7916,4004.0,4002.9,0.7908]
[1734441803658,0.7916,4004.0,4003.1,1.0785142]
[1734441803659,0.05618258,4003.9,4003.1,1.0785142]
[1734441803965,0.7916,4004.7,4003.4,1.0785142]
[1734441804351,0.054664,4004.6,4003.5,0.7908]
[1734441815048,0.7597,4004.3,4002.5,0.7749]
[1734441815178,0.7597,4003.9,4002.5,0.7749]
[1734441815626,0.05499439,4003.8,4002.5,0.7749]
[1734441815928,0.31476123,4003.7,4002.5,0.7749]
[1734441816350,0.05496159,4003.6,4002.5,0.7749]
[1734441820886,1.79844127,4004.2,4002.5,0.7749]
[1734441821091,0.05251378,4003.5,4002.5,0.7749]
[1734441821334,1.79844127,4004.2,4002.5,0.7749]
[1734441821487,0.05249738,4003.4,4002.5,0.7749]
[1734441821830,3.26947258,4004.1,4002.5,0.7749]
[1734441821831,0.05248097,4003.3,4002.5,0.7749]
[1734441822143,0.05248097,4003.3,4002.7,0.7749]
[1734441822443,0.7597,4004.2,4002.7,0.7749]
[1734441822590,0.86031797,4004.1,4002.7,0.7749]
[1734441822933,0.26587592,4004.0,4002.7,0.7749]
[1734441823289,0.91338607,4003.9,4002.7,0.7749]
[1734441823523,0.86068035,4003.8,4002.7,0.7749]
[1734441823892,0.05275572,4003.7,4002.7,0.7749]
[1734441824420,0.05273932,4003.6,4002.7,0.7749]
[1734441824618,1.03874127,4003.8,4002.7,0.7749]
[1734441824943,0.05270798,4003.5,4002.7,0.7749]
[1734441825091,0.05274078,4003.7,4002.7,0.7749]
[1734441825292,0.05269158,4003.4,4002.7,0.7749]
[1734441825535,0.05272438,4003.6,4002.7,0.7749]
[1734441825697,0.05267518,4003.3,4002.7,0.7749]
[1734441825931,1.03874127,4003.9,4002.3,0.7662]
[1734441826106,0.8616442,4003.8,4002.9,0.7662]
[1734441826307,0.05275221,4003.8,4002.9,0.7662]
[1734441826700,1.03874127,4004.0,4002.9,0.7662]
[1734441826904,0.05273581,4003.7,4002.9,0.7662]
[1734441827102,1.09150988,4003.9,4002.9,0.7662]
[1734441827321,0.05271941,4003.6,4002.9,0.7662]
[1734441827529,1.09149348,4003.8,4002.9,0.7662]
[1734441827692,0.05270301,4003.5,4002.9,0.7662]
[1734441827892,1.03874127,4003.9,4002.9,0.7662]
[1734441828227,1.03874127,4003.8,4002.9,0.7662]
[1734441828438,1.09149348,4003.8,4002.9,0.7662]
[1734441828736,0.86204264,4003.7,4002.9,0.7662]
[1734441829327,0.05277064,4003.7,4002.9,0.7662]
[1734441829507,0.86259366,4003.6,4002.9,0.7662]
[1734441829712,0.05277064,4003.7,4002.9,0.7662]
[1734441829899,0.05273785,4003.5,4002.9,0.7662]
[1734441830130,0.05274431,4003.6,4002.9,0.7662]
[1734441830340,0.05271151,4003.4,4002.9,0.7662]
[1734441830543,0.05272791,4003.5,4002.9,0.7662]
[1734441830725,0.05269511,4003.3,4002.9,0.7662]
[1734441830932,0.05271151,4003.4,4002.9,0.7662]
[1734441831132,0.05267871,4003.2,4002.9,0.7662]
[1734441831324,0.05269511,4003.3,4002.9,0.7662]
[1734441831494,0.0526623,4003.1,4002.9,0.7662]
[1734441831835,0.0526459,4003.0,4002.9,0.7662]
[1734441832021,1.03874127,4003.7,4002.9,0.7662]
[1734441832531,0.05274431,4003.6,4002.9,0.7662]
[1734441833332,1.07686759,4004.2,4002.9,0.7662]
[1734441833734,0.05283126,4004.1,4002.9,0.7662]
[1734441833942,1.0444859,4003.6,4002.9,0.7662]
[1734441834246,1.34836798,4003.5,4002.9,0.7662]
[1734441834400,0.86365928,4003.4,4002.9,0.7662]
[1734441834603,0.91635086,4003.4,4002.9,0.7662]
[1734441834828,0.05269158,4003.4,4002.9,0.7662]
[1734441835716,1.0444859,4003.6,4002.9,0.7662]
[1734441835911,0.05267518,4003.3,4002.9,0.7662]
[1734441836129,1.0444859,4003.6,4002.9,0.7662]
[1734441836328,0.05265877,4003.2,4002.9,0.7662]
[1734441836638,0.05264237,4003.1,4002.9,0.7662]
[1734441836813,1.0444859,4003.6,4002.9,0.7662]
[1734441837015,0.05262597,4003.0,4002.9,0.7662]
[1734441837239,1.0444859,4003.6,4002.9,0.7662]
[1734441837398,0.05262597,4003.0,4002.9,0.7662]
[1734441837595,1.0444859,4003.6,4002.9,0.7662]
[1734441837800,0.05262597,4003.0,4002.9,0.7662]
[1734441838040,1.0444859,4003.6,4002.9,0.7662]
[1734441838196,0.05262597,4003.0,4002.9,0.7662]
[1734441838402,1.0444859,4003.6,4002.9,0.7662]
[1734441838623,0.05262597,4003.0,4002.9,0.7662]
[1734441838823,1.0444859,4003.6,4002.9,0.7662]
[1734441839018,0.05262597,4003.0,4002.9,0.7662]
[1734441839331,1.0444859,4003.6,4002.9,0.7662]
[1734441839530,0.05262597,4003.0,4002.9,0.7662]
[1734441840061,1.0444859,4003.6,4002.9,0.7662]
[1734441840570,0.05270798,4003.5,4002.9,0.7662]
[1734441841038,0.86371765,4003.4,4002.9,0.7662]
[1734441841233,0.91640923,4003.4,4002.9,0.7662]
[1734441841448,0.05269158,4003.4,4002.9,0.7662]
[1734441841624,1.0444859,4003.6,4002.9,0.7662]
[1734441842164,0.05270798,4003.5,4002.9,0.7662]
[1734441842365,1.9608876,4003.5,4002.9,0.7662]
[1734441842670,2.1592343,4003.4,4002.9,0.7662]
[1734441843169,0.05267518,4003.3,4002.9,0.7662]
[1734441843523,1.0444859,4003.5,4002.9,0.7662]
[1734441843848,1.0444859,4003.3,4002.9,0.7662]
[1734441844053,1.90843417,4003.3,4002.9,0.7662]
[1734441844225,0.91660206,4003.2,4002.9,0.7662]
[1734441844425,0.86394827,4003.1,4002.9,0.7662]
[1734441844786,0.91658565,4003.1,4002.9,0.7662]
[1734441844920,0.05263738,4003.1,4002.9,0.7662]
[1734441845123,1.0444859,4003.4,4002.9,0.7662]
[1734441845324,0.91662694,4003.3,4002.9,0.7662]
[1734441845524,0.86401153,4003.2,4002.9,0.7662]
[1734441845755,0.05258261,4003.1,4002.9,0.7662]